bitfinex/quotes_SOLUSD_20250829
["timestamp","ask_amount","ask_price","bid_price","bid_amount"]
[1756479764367,0.06,208.91,208.9,39.90086074]
[1756479765462,0.06,208.91,208.9,45.35784015]
[1756479765958,0.06,208.91,208.9,18.38257342]
[1756479766134,0.06,208.91,208.9,44.68784015]
[1756479766339,0.06,208.91,208.9,26.30526673]
[1756479766542,0.06,208.91,208.9,40.57086074]
[1756479766746,0.2,208.93,208.91,13.59559401]
[1756479767064,0.2,208.93,208.92,39.90086074]
[1756479767242,0.2,208.93,208.92,40.57086074]
[1756479767567,0.2,208.93,208.92,45.35738189]
[1756479767875,0.2,208.93,208.92,19.05211516]
[1756479768165,0.2,208.93,208.9,26.30526673]
[1756479768347,0.69,208.92,208.86,30.78768365]
[1756479768544,0.69,208.92,208.67,145.55584894]
[1756479768545,26.30526673,208.89,208.8,0.67]
[1756479768760,26.30526673,208.86,208.8,26.30526673]
[1756479768967,26.30526673,208.85,208.76,5.46018969]
[1756479769141,68.71526673,208.86,208.8,26.30526673]
[1756479769340,26.30526673,208.87,208.82,13.59559401]
[1756479769549,26.30526673,208.84,208.78,4.78960672]
[1756479769752,0.83216157,208.86,208.74,4.79064865]
[1756479769753,26.30526673,208.81,208.74,4.79064865]
[1756479769970,26.30526673,208.81,208.76,13.59559401]
[1756479770144,26.30526673,208.8,208.74,31.09591538]
[1756479770353,26.30526673,208.8,208.75,13.59559401]
[1756479770737,26.30526673,208.81,208.75,39.90086074]
[1756479771150,26.30526673,208.76,208.69,4.79179644]
[1756479771476,26.30526673,208.76,208.65,31.09781021]
[1756479771477,26.30526673,208.71,208.65,31.09781021]
[1756479771644,26.30526673,208.68,208.63,7.32156378]
[1756479771845,0.69,208.71,208.64,13.59559401]
[1756479771846,26.30526673,208.69,208.64,13.59559401]
[1756479772057,26.30526673,208.7,208.64,26.30526673]
[1756479772257,0.69,208.75,208.65,0.67]
[1756479772473,41.72,208.74,208.7,26.30526673]
[1756479772664,0.14216157,208.75,208.7,26.30526673]
[1756479772861,52.30526673,208.77,208.71,26.30526673]
[1756479773062,41.7,208.76,208.71,26.30526673]
[1756479773275,26.69,208.78,208.72,39.90086074]
[1756479773583,41.7,208.78,208.74,31.09577731]
[1756479774542,26.69,208.81,208.75,39.90086074]
[1756479774747,41.68,208.8,208.76,26.30526673]
[1756479774957,41.68,208.8,208.74,4.79051058]
[1756479774958,0.69,208.79,208.74,4.79051058]
[1756479775145,0.69,208.79,208.74,31.09577731]
[1756479775371,41.68,208.8,208.75,26.30526673]
[1756479775582,41.66,208.79,208.76,31.09545642]
[1756479775757,41.66,208.79,208.74,4.7904357]
[1756479776083,26.30526673,208.76,208.7,26.30526673]
[1756479776294,26.99526673,208.78,208.72,39.90086074]
[1756479776452,41.66,208.77,208.74,26.30526673]
[1756479776653,0.14216157,208.8,208.74,26.30526673]
[1756479776867,41.66,208.79,208.75,26.30526673]
[1756479777072,0.69,208.78,208.72,13.59559401]
[1756479777285,41.66,208.79,208.74,26.30526673]
[1756479777487,0.14216157,208.8,208.73,26.30526673]
[1756479777784,42.33,208.78,208.73,31.09610855]
[1756479778168,26.30526673,208.74,208.66,4.79248538]
[1756479778487,0.83216157,208.77,208.67,13.59559401]
[1756479778488,26.30526673,208.73,208.67,13.59559401]
[1756479778797,26.30526673,208.69,208.65,13.59559401]
[1756479778972,42.31,208.72,208.65,13.59559401]
[1756479778973,26.30526673,208.7,208.65,13.59559401]
[1756479779378,26.30526673,208.71,208.65,40.57086074]
[1756479779680,26.30526673,208.68,208.63,13.62559401]
[1756479779880,26.30526673,208.68,208.63,18.41867423]
[1756479780193,26.30526673,208.64,208.63,0.03]
[1756479780494,26.0,208.61,208.6,0.03]
[1756479780675,52.4474283,208.61,208.6,0.03]
[1756479780872,26.82216157,208.61,208.6,0.03]
[1756479781079,41.6,208.63,208.6,0.03]
[1756479781301,67.90526673,208.63,208.6,0.03]
[1756479781512,53.1274283,208.61,208.6,0.03]
[1756479781672,57.92106235,208.61,208.6,0.03]
[1756479782473,71.51665636,208.61,208.58,0.03]
[1756479782692,26.4474283,208.59,208.58,0.03]
[1756479783102,68.8874283,208.59,208.58,0.03]
[1756479783308,68.8874283,208.59,208.51,0.03]
[1756479783309,66.72302231,208.59,208.51,0.03]
[1756479783485,26.4474283,208.52,208.51,0.03]
[1756479783675,68.3074283,208.52,208.51,0.03]
[1756479783875,69.0274283,208.52,208.51,0.03]
[1756479784088,3.99050293,208.62,208.51,0.03]
[1756479784297,26.30526673,208.54,208.51,0.03]
[1756479784506,41.92,208.54,208.51,0.03]
[1756479785175,8.72224122,208.62,208.51,0.03]
[1756479785176,41.9,208.55,208.52,26.96526673]
[1756479785522,41.9,208.56,208.52,13.59559401]
[1756479785713,41.88,208.56,208.52,18.39115601]
[1756479785878,3.99050293,208.7,208.52,18.39115601]
[1756479785879,26.30526673,208.61,208.55,26.30526673]
[1756479786079,41.86,208.6,208.55,26.30526673]
[1756479786698,41.88,208.63,208.59,39.90086074]
[1756479786916,41.88,208.63,208.56,0.66]
[1756479787113,26.30526673,208.62,208.56,40.56086074]
[1756479787422,41.88,208.63,208.58,39.90086074]
[1756479787626,26.30526673,208.65,208.59,4.79409367]
[1756479787832,41.88,208.64,208.61,26.30526673]
[1756479788036,26.30526673,208.62,208.55,4.79501318]
[1756479788331,26.30526673,208.6,208.53,5.45528761]
[1756479788499,26.30526673,208.58,208.53,13.59559401]
[1756479788900,26.30526673,208.58,208.52,4.79568395]
[1756479789137,26.30526673,208.58,208.51,0.03]
[1756479789138,26.30526673,208.53,208.51,0.03]
[1756479789347,41.84,208.53,208.51,0.03]
[1756479789543,41.84,208.53,208.51,4.82586282]
[1756479789815,3.99050293,208.7,208.51,4.82586282]
[1756479789816,0.68,208.62,208.52,40.56086074]
[1756479790126,94.3074283,208.61,208.54,26.30526673]
[1756479790327,94.3074283,208.61,208.55,26.30526673]
[1756479790518,26.30526673,208.6,208.54,26.30526673]
[1756479790721,26.30526673,208.6,208.51,16.81569544]
[1756479790722,26.30526673,208.55,208.51,0.03]
[1756479791030,68.16526673,208.54,208.51,0.03]
[1756479791229,41.86,208.54,208.51,0.03]
[1756479791427,41.86,208.54,208.51,4.82592822]
[1756479791637,26.4474283,208.58,208.53,4.79547307]
[1756479791837,41.86,208.57,208.53,4.79547307]
[1756479793050,0.68,208.56,208.54,0.03]
[1756479793233,26.30526673,208.56,208.54,0.03]
[1756479793557,27.1274283,208.55,208.54,0.03]
[1756479794336,31.92244148,208.55,208.54,0.03]
[1756479796953,5.61717475,208.55,208.54,0.03]
[1756479797157,73.60244148,208.55,208.54,0.03]
[1756479797358,31.92244148,208.55,208.54,0.03]
[1756479797557,73.60244148,208.55,208.54,0.03]
[1756479797958,4.79476198,208.57,208.54,0.03]
[1756479798145,15.88699293,208.6,208.54,0.03]
[1756479798146,26.30526673,208.56,208.54,0.03]
[1756479798345,41.66,208.55,208.54,0.03]
[1756479799356,26.30526673,208.59,208.54,0.03]
[1756479799646,67.96526673,208.58,208.54,0.03]
[1756479800461,41.66,208.58,208.54,0.03]
[1756479800668,0.88216157,208.6,208.57,13.59559401]
[1756479800669,0.06,208.6,208.57,13.59559401]
[1756479800872,0.06,208.6,208.59,26.30526673]
[1756479801047,28.14,208.6,208.59,26.30526673]
[1756479801550,0.06,208.6,208.59,40.56086074]
[1756479801965,0.06,208.6,208.59,45.35495441]
[1756479802485,41.76,208.6,208.57,26.30526673]
[1756479802653,41.72,208.59,208.57,26.30526673]
[1756479802847,41.72,208.59,208.57,26.96526673]
[1756479803354,0.06,208.6,208.58,26.96526673]
[1756479803659,0.06,208.6,208.59,26.30526673]
[1756479803980,0.06,208.6,208.59,45.35495441]
[1756479804274,0.06,208.6,208.59,26.96526673]
[1756479804487,0.06,208.6,208.55,85.39498977]
[1756479804656,0.06,208.6,208.55,112.3602565]
[1756479805076,0.06,208.6,208.56,0.66]
[1756479805281,0.06,208.6,208.55,111.7002565]
[1756479805462,26.30526673,208.58,208.54,4.82524078]
[1756479805794,67.98526673,208.57,208.54,0.03]
[1756479806085,41.68,208.57,208.54,0.03]
[1756479806292,0.20216157,208.6,208.55,26.96526673]
[1756479806454,41.64,208.58,208.55,26.30526673]
[1756479806660,67.94526673,208.58,208.54,0.03]
[1756479806971,41.64,208.58,208.54,0.03]
[1756479807167,0.20216157,208.6,208.55,26.96526673]
[1756479807488,0.68,208.77,208.63,26.0]
[1756479807665,26.30526673,208.73,208.64,40.56086074]
[1756479807872,9.96,208.7,208.64,40.56086074]
[1756479808072,9.96,208.7,208.64,45.35380552]
[1756479808370,41.84,208.65,208.63,26.30526673]
[1756479808566,41.84,208.65,208.64,26.30526673]
[1756479808763,41.84,208.65,208.62,2.50010284]
[1756479809094,0.14216157,208.64,208.62,2.50010284]
[1756479809966,0.06,208.65,208.62,33.5987568]
[1756479810173,41.74,208.64,208.62,2.50010284]
[1756479810359,68.04526673,208.64,208.62,2.50010284]
[1756479810560,41.74,208.64,208.62,7.29343551]
[1756479810797,41.74,208.64,208.62,2.50010284]
[1756479811199,41.76,208.63,208.62,2.50010284]
[1756479811875,0.06,208.64,208.62,7.29350711]
[1756479812075,0.06,208.64,208.63,26.30526673]
[1756479812283,0.06,208.65,208.64,13.59559401]
[1756479812587,0.06,208.65,208.64,121.21086074]
[1756479813767,0.06,208.67,208.66,65.90086074]
[1756479814163,0.06,208.67,208.66,31.09775211]
[1756479814465,0.06,208.67,208.66,45.40334612]
[1756479816307,0.06,208.67,208.66,126.00334612]
[1756479816597,0.06,208.67,208.66,85.39248538]
[1756479816915,0.06,208.67,208.66,80.6]
[1756479817492,0.06,208.67,208.66,99.69807939]
[1756479817699,0.06,208.67,208.66,126.00334612]
[1756479818003,0.06,208.67,208.66,111.69775211]
[1756479818202,0.06,208.67,208.66,125.29334612]
[1756479819010,0.06,208.67,208.66,126.00334612]
[1756479819183,0.06,208.69,208.66,126.00334612]
[1756479819383,0.06,208.69,208.68,26.30526673]
[1756479819697,41.66,208.75,208.69,94.13559401]
[1756479819890,0.68,208.79,208.72,26.30526673]
[1756479820103,41.64,208.77,208.69,94.13559401]
[1756479820304,41.62,208.77,208.72,26.30526673]
[1756479820684,0.68,208.76,208.71,26.30526673]
[1756479821008,26.30526673,208.74,208.69,85.33175599]
[1756479821513,26.4474283,208.75,208.69,85.33175599]
[1756479821913,0.68,208.76,208.7,26.30526673]
[1756479822212,3.99050293,208.82,208.7,26.30526673]
[1756479822213,41.62,208.75,208.74,4.79064865]
[1756479822510,26.30526673,208.78,208.72,26.30526673]
[1756479822713,41.62,208.79,208.74,26.30526673]
[1756479823084,41.62,208.79,208.72,80.54]
[1756479823085,0.68,208.78,208.73,26.30526673]
[1756479823285,0.68,208.77,208.72,106.84526673]
[1756479823485,0.68,208.77,208.72,80.54]
[1756479823709,26.30526673,208.74,208.72,80.54]
[1756479823912,68.7474283,208.73,208.72,80.54]
[1756479824110,68.7474283,208.73,208.63,26.30526673]
[1756479824111,0.14216157,208.72,208.63,26.30526673]
[1756479824322,26.30526673,208.68,208.63,4.79298234]
[1756479824524,26.30526673,208.69,208.63,31.09824907]
[1756479824730,26.30526673,208.7,208.64,39.90086074]
[1756479825037,26.30526673,208.65,208.6,4.79382138]
[1756479825200,68.60526673,208.64,208.58,31.09943324]
[1756479825541,26.30526673,208.63,208.58,4.79416651]
[1756479825698,26.30526673,208.61,208.58,4.79416651]
[1756479826108,26.30526673,208.59,208.55,4.79501318]
[1756479826430,41.62,208.58,208.56,0.71]
[1756479826632,41.62,208.58,208.54,26.33526673]
[1756479826936,41.62,208.58,208.54,4.82521725]
[1756479827090,41.62,208.58,208.55,26.30526673]
[1756479827295,26.4474283,208.62,208.56,26.30526673]
[1756479827499,0.14216157,208.62,208.57,26.30526673]
[1756479827712,67.92526673,208.61,208.55,26.30526673]
[1756479827926,68.60526673,208.61,208.54,31.13048398]
[1756479828424,41.62,208.61,208.57,26.30526673]
[1756479828725,41.62,208.6,208.57,27.01526673]
[1756479828927,41.62,208.6,208.55,13.59559401]
[1756479829231,41.62,208.6,208.57,26.30526673]
[1756479829614,68.60526673,208.6,208.54,31.13048398]
[1756479830120,41.62,208.6,208.54,31.13048398]
[1756479830298,26.30526673,208.61,208.56,4.79478327]
[1756479830505,41.62,208.6,208.56,4.79478327]
[1756479830813,41.62,208.59,208.56,4.79478327]
[1756479831017,0.68,208.63,208.56,31.10005]
[1756479831326,67.92526673,208.62,208.56,4.79478327]
[1756479831539,41.62,208.62,208.56,31.10005]
[1756479831717,26.30526673,208.61,208.56,4.79478327]
[1756479832034,26.30526673,208.6,208.54,31.13034803]
[1756479832206,26.30526673,208.58,208.54,0.03]
[1756479832394,41.62,208.57,208.54,0.03]
[1756479832729,26.30526673,208.56,208.54,0.03]
[1756479832905,0.14216157,208.6,208.54,0.03]
[1756479833108,26.36526673,208.65,208.59,26.30526673]
[1756479833332,41.62,208.64,208.58,26.30526673]
[1756479833534,67.92526673,208.64,208.57,26.30526673]
[1756479833721,26.30526673,208.61,208.55,26.30526673]
[1756479834102,26.4474283,208.62,208.54,26.03]
[1756479834305,26.4474283,208.62,208.56,26.30526673]
[1756479834745,26.4474283,208.62,208.55,31.10027991]
[1756479835024,26.30526673,208.61,208.55,31.10027991]
[1756479835221,26.30526673,208.57,208.54,0.03]
[1756479835436,41.62,208.56,208.54,4.8250713]
[1756479836198,0.14216157,208.58,208.54,4.8250713]
[1756479836501,41.62,208.57,208.55,26.30526673]
[1756479836697,41.62,208.56,208.54,57.13033803]
[1756479837016,41.62,208.56,208.54,31.5350713]
[1756479837339,41.62,208.56,208.54,26.03]
[1756479837832,41.62,208.55,208.54,137.67048095]
[1756479838030,41.62,208.57,208.55,0.71]
[1756479838204,41.62,208.57,208.54,111.67048095]
[1756479838808,41.62,208.57,208.56,4.79478327]
[1756479839110,68.0674283,208.57,208.56,80.54]
[1756479839524,0.14216157,208.56,208.54,0.03]
[1756479839733,26.98526673,208.55,208.54,0.03]
[1756479840234,27.1274283,208.55,208.54,0.03]
[1756479840532,0.14216157,208.58,208.54,0.03]
[1756479840723,41.62,208.57,208.54,0.03]
[1756479841108,0.14216157,208.58,208.54,0.03]
[1756479841317,41.62,208.57,208.54,0.03]
[1756479841511,68.7474283,208.56,208.54,0.03]
[1756479841714,27.1274283,208.55,208.54,0.03]
[1756479842633,41.62,208.55,208.54,0.03]
[1756479842942,4.05050293,208.65,208.54,0.72]
[1756479842943,0.68,208.62,208.54,0.72]
[1756479843138,41.62,208.61,208.54,81.26]
[1756479843321,41.62,208.61,208.56,26.30526673]
[1756479843634,67.92526673,208.61,208.55,26.30526673]
[1756479843834,67.92526673,208.61,208.54,81.26]
[1756479844211,0.14216157,208.58,208.54,80.57]
[1756479844410,41.62,208.57,208.56,26.30526673]
[1756479844712,41.62,208.57,208.54,107.56526673]
[1756479844929,42.3,208.57,208.54,80.57]
[1756479845243,42.3,208.57,208.54,0.03]
[1756479845244,27.1274283,208.56,208.54,0.03]
[1756479845408,26.4474283,208.55,208.54,0.03]
[1756479845833,26.82216157,208.55,208.54,0.03]
[1756479846031,53.1274283,208.55,208.54,0.03]
[1756479846221,27.1274283,208.55,208.54,0.03]
[1756479846615,68.0674283,208.55,208.54,0.03]
[1756479846810,68.7474283,208.55,208.54,0.03]
[1756479847019,73.54244148,208.55,208.54,0.03]
[1756479847431,26.0,208.52,208.51,0.03]
[1756479847627,52.4474283,208.52,208.51,0.03]
[1756479847819,94.7474283,208.52,208.51,0.03]
[1756479848409,53.1274283,208.52,208.51,0.03]
[1756479848831,26.98526673,208.52,208.51,0.03]
[1756479849022,73.40096978,208.52,208.51,0.03]
[1756479849345,73.54313135,208.52,208.51,0.03]
[1756479850352,87.13872536,208.52,208.51,0.03]
[1756479850710,31.92313135,208.52,208.51,0.03]
[1756479850910,68.7474283,208.52,208.51,0.03]
[1756479851141,47.23786462,208.52,208.51,0.03]
[1756479851345,67.92526673,208.52,208.51,0.03]
[1756479851516,26.0,208.53,208.51,0.03]
[1756479851715,41.62,208.52,208.51,0.03]
[1756479852525,68.7474283,208.52,208.51,0.03]
[1756479852839,41.76216157,208.52,208.51,0.03]
[1756479853043,68.0674283,208.52,208.51,0.03]
[1756479853251,73.54313135,208.52,208.51,0.03]
[1756479853540,87.13872536,208.52,208.51,0.03]
[1756479854647,39.59559401,208.5,208.49,0.03]
[1756479854960,112.45918537,208.5,208.49,0.03]
[1756479855163,113.13918537,208.5,208.49,0.03]
[1756479855459,0.14216157,208.49,208.46,0.03]
[1756479855634,26.0,208.44,208.42,0.1]
[1756479855830,85.40162144,208.44,208.42,0.1]
[1756479856648,98.99721545,208.44,208.42,0.1]
[1756479856855,26.82216157,208.44,208.42,0.1]
[1756479857154,90.19916509,208.44,208.42,0.1]
[1756479857356,99.56953437,208.44,208.42,0.1]
[1756479858238,98.88953437,208.44,208.42,0.1]
[1756479858454,57.26953437,208.44,208.42,0.1]
[1756479858659,23.98081534,208.5,208.42,0.1]
[1756479858660,5.47593304,208.51,208.43,0.72]
[1756479858842,4.79566892,208.53,208.44,26.32982915]
[1756479859162,26.32982915,208.49,208.45,0.69]
[1756479859372,41.78216157,208.48,208.46,0.69]
[1756479859658,26.32982915,208.47,208.43,0.03]
[1756479859859,26.32982915,208.44,208.43,0.03]
[1756479860064,68.11199072,208.44,208.43,0.03]
[1756479861646,72.90953437,208.44,208.43,0.03]
[1756479861855,87.18512838,208.44,208.43,0.03]
[1756479862747,73.58953437,208.44,208.43,0.03]
[1756479863056,72.88953437,208.44,208.43,0.03]
[1756479863561,68.09199072,208.44,208.43,0.03]
[1756479863741,46.55970522,208.44,208.43,0.03]
[1756479863941,26.32982915,208.48,208.43,0.72]
[1756479864138,26.32982915,208.52,208.46,26.32982915]
[1756479864442,4.79501318,208.55,208.45,27.01982915]
[1756479864443,67.94982915,208.51,208.45,27.01982915]
[1756479864644,14.424117,208.59,208.48,26.32982915]
[1756479864953,26.32982915,208.53,208.49,0.69]
[1756479865141,60.90982915,208.56,208.49,27.01982915]
[1756479865464,41.62,208.55,208.53,26.32982915]
[1756479865766,41.62,208.54,208.53,31.1252647]
[1756479866144,41.62,208.54,208.53,31.8152647]
[1756479867557,41.62,208.54,208.53,27.01982915]
[1756479867863,41.62,208.54,208.52,4.79568409]
[1756479867864,0.14216157,208.53,208.47,27.01982915]
[1756479868162,26.47199072,208.53,208.47,27.01982915]
[1756479868749,26.32982915,208.52,208.47,0.69]
[1756479869060,0.14216157,208.53,208.47,0.69]
[1756479869061,41.62,208.53,208.47,0.69]
[1756479869260,41.62,208.53,208.5,26.32982915]
[1756479869467,41.62,208.53,208.5,0.69]
[1756479869852,26.47199072,208.51,208.47,0.69]
[1756479870168,26.47199072,208.51,208.43,0.72]
[1756479870169,26.32982915,208.48,208.43,0.72]
[1756479870349,41.62,208.47,208.43,81.32]
[1756479870551,41.62,208.47,208.44,0.68]
[1756479870953,0.14216157,208.51,208.45,27.00982915]
[1756479871171,41.62,208.5,208.46,31.12681844]
[1756479871359,41.62,208.49,208.47,0.68]
[1756479872274,26.32982915,208.48,208.43,80.63]
[1756479872455,67.94982915,208.49,208.43,106.95982915]
[1756479872655,26.32982915,208.48,208.43,80.63]
[1756479872871,26.32982915,208.45,208.43,0.03]
[1756479873198,41.6,208.46,208.44,27.00982915]
[1756479873357,41.6,208.45,208.44,31.1273728]
[1756479873562,41.6,208.45,208.44,80.6]
[1756479873882,41.6,208.45,208.43,0.03]
[1756479873883,0.14216157,208.44,208.43,0.03]
[1756479874050,27.13199072,208.44,208.43,0.03]
[1756479874376,40.72758473,208.44,208.43,0.03]
[1756479874575,0.80216157,208.44,208.43,0.03]
[1756479874778,68.73199072,208.44,208.43,0.03]
[1756479874954,27.13199072,208.44,208.43,0.03]
[1756479875153,94.73199072,208.44,208.43,0.03]
[1756479875477,99.52953437,208.44,208.43,0.03]
[1756479875856,87.12512838,208.44,208.43,0.03]
[1756479876058,90.88891738,208.44,208.43,0.03]
[1756479877169,73.52953437,208.44,208.43,0.03]
[1756479877370,87.12512838,208.44,208.43,0.03]
[1756479877972,90.9096376,208.44,208.43,1e-08]
[1756479878557,117.23946675,208.44,208.42,1e-08]
[1756479878788,40.06758473,208.43,208.42,1e-08]
[1756479879286,45.52535856,208.43,208.42,1e-08]
[1756479879489,0.14216157,208.39,208.38,1e-08]
[1756479879702,72.31277594,208.39,208.38,1e-08]
[1756479879867,72.97277594,208.39,208.38,1e-08]
[1756479880475,31.37277594,208.39,208.38,1e-08]
[1756479880699,3.95447982,208.44,208.38,1e-08]
[1756479880878,2.50693764,208.49,208.39,16.97502036]
[1756479881082,2.50693764,208.49,208.38,0.68000001]
[1756479881083,41.6,208.48,208.4,17.65502036]
[1756479881299,16.97502036,208.47,208.41,16.97502036]
[1756479881470,26.31024608,208.43,208.4,0.68]
[1756479881677,67.91024608,208.42,208.4,0.68]
[1756479881988,41.6,208.41,208.4,0.68]
[1756479882287,26.31024608,208.46,208.41,0.68]
[1756479882482,41.6,208.45,208.42,0.68]
[1756479882678,67.91024608,208.45,208.43,0.68]
[1756479882886,67.91024608,208.45,208.39,26.31024608]
[1756479882887,67.91024608,208.45,208.4,0.68]
[1756479883070,26.31024608,208.44,208.4,0.68]
[1756479883275,41.6,208.43,208.41,0.68]
[1756479883977,41.6,208.42,208.38,26.31024609]
[1756479884187,26.31024608,208.47,208.41,0.68]
[1756479884387,41.6,208.46,208.41,0.68]
[1756479884695,0.06,208.49,208.41,0.68]
[1756479884997,41.6,208.48,208.46,26.31024608]
[1756479885169,41.6,208.48,208.47,0.68]
[1756479885370,41.6,208.48,208.44,0.68]
[1756479885594,41.6,208.48,208.45,0.68]
[1756479885795,41.6,208.48,208.39,16.79523483]
[1756479885796,26.45240765,208.47,208.42,0.68]
[1756479886092,0.14216157,208.47,208.42,26.99024608]
[1756479886292,26.45240765,208.47,208.43,0.68]
[1756479886481,26.31024608,208.44,208.39,5.47849795]
[1756479886682,41.6,208.43,208.4,0.68]
[1756479886883,41.6,208.43,208.41,0.68]
[1756479887072,4.93901483,208.47,208.41,0.68]
[1756479887278,41.6,208.46,208.43,26.31024608]
[1756479887482,0.20216157,208.49,208.45,4.7973135]
[1756479887683,41.6,208.48,208.46,0.68]
[1756479887869,41.6,208.48,208.45,4.7973135]
[1756479888083,41.6,208.48,208.43,31.7877966]
[1756479888292,26.51240765,208.49,208.44,0.68]
[1756479888596,41.6,208.47,208.42,26.31024608]
[1756479888789,41.58,208.46,208.45,0.68]
[1756479889092,41.58,208.46,208.43,26.31024608]
[1756479889397,0.06,208.49,208.44,26.31024608]
[1756479889585,41.58,208.48,208.45,31.78755958]
[1756479889784,0.06,208.49,208.47,26.31024608]
[1756479889985,41.58,208.48,208.46,0.68]
[1756479890197,26.31024608,208.47,208.42,0.68]
[1756479890371,0.06,208.49,208.44,26.31024608]
[1756479890575,41.58,208.48,208.45,0.68]
[1756479891699,41.58,208.48,208.46,0.68]
[1756479891902,0.06,208.49,208.47,0.68]
[1756479892116,41.58,208.48,208.47,0.68]
[1756479893821,41.58,208.48,208.47,5.47685326]
[1756479894513,41.58,208.48,208.44,11.99385914]
[1756479894514,67.89024608,208.48,208.42,0.68]
[1756479894715,26.45240765,208.47,208.43,4.79773558]
[1756479894915,26.45240765,208.47,208.44,0.68]
[1756479895220,41.56,208.46,208.44,0.68]
[1756479895411,41.56,208.45,208.43,31.10798166]
[1756479895615,0.06,208.49,208.44,26.31024608]
[1756479895817,41.56,208.48,208.45,4.7973135]
[1756479896127,26.37024608,208.49,208.43,4.79777383]
[1756479896313,41.56,208.47,208.43,111.70801991]
[1756479896504,41.56,208.47,208.44,0.68]
[1756479896702,41.56,208.46,208.44,0.68]
[1756479897617,0.06,208.49,208.44,0.68]
[1756479897926,41.56,208.48,208.44,5.47754365]
[1756479898495,26.45240765,208.47,208.43,85.39774081]
[1756479898733,26.31024608,208.45,208.43,80.6]
[1756479898896,41.56,208.44,208.43,80.6]
[1756479900114,5.5163969,208.49,208.43,80.6]
[1756479900115,0.06,208.49,208.43,111.70801991]
[1756479900324,41.56,208.48,208.47,26.31024608]
[1756479900640,41.56,208.48,208.47,26.99024608]
[1756479901046,0.06,208.49,208.47,26.99024608]
[1756479901220,41.6,208.49,208.48,27.02024608]
[1756479902048,41.6,208.49,208.48,31.10686925]
[1756479902229,41.6,208.49,208.48,31.81686925]
[1756479902641,41.6,208.49,208.48,5.50662317]
[1756479902842,41.6,208.49,208.48,31.81686925]
[1756479903060,41.6,208.49,208.48,31.10686925]
[1756479903260,41.6,208.49,208.48,4.79662317]
[1756479903929,0.06,208.49,208.48,116.64193939]
[1756479904150,0.06,208.51,208.5,39.59559401]
[1756479904327,0.06,208.51,208.5,42.93972221]
[1756479904530,17.69972221,208.51,208.48,80.6]
[1756479904730,16.99972221,208.51,208.48,80.6]
[1756479905047,0.06,208.51,208.48,86.10653468]
[1756479905262,41.54,208.5,208.48,103.04625689]
[1756479905431,41.54,208.5,208.48,86.10653468]
[1756479905751,0.06,208.51,208.48,86.10653468]
[1756479905939,41.54,208.49,208.48,85.39653468]
[1756479906247,41.54,208.49,208.48,102.33625689]
[1756479906453,41.54,208.49,208.48,85.39653468]
[1756479906630,16.99972221,208.51,208.48,85.39653468]
[1756479906831,41.52,208.5,208.48,80.6]
[1756479907428,16.93972221,208.49,208.42,26.0]
[1756479907760,16.93972221,208.47,208.42,26.0]
[1756479907929,0.20216157,208.51,208.42,26.0]
[1756479907930,16.93972221,208.45,208.42,30.79783293]
[1756479908560,16.93972221,208.44,208.39,5.5086685]
[1756479909140,16.93972221,208.44,208.39,4.7986685]
[1756479909465,16.93972221,208.42,208.38,1e-08]
[1756479910341,41.52,208.43,208.39,17.64972221]
[1756479910541,41.52,208.43,208.4,0.71]
[1756479910794,16.93972221,208.42,208.38,1e-08]
[1756479910946,16.93972221,208.41,208.38,1e-08]
[1756479911146,4.00989065,208.52,208.4,30.53531622]
[1756479911462,41.52,208.5,208.45,16.93972221]
[1756479911865,0.06,208.51,208.48,16.93972221]